{"text_format":"1","workbook":"xlsx","n_sheets":12,"sheets":["Index","General Info","Scrutinizer Details","Voting Results","Resolution","Resolution (1)","Resolution (2)","Resolution (3)","Resolution (4)","Resolution (5)","Taxonomy","TextBlock"],"not_rendered":{"charts":0,"images":4,"macros":1,"external_links":0,"defined_names":1,"comments":0,"pivot_tables":0},"unopened":[],"bounds":{"document_bytes":16777216,"sheet_cells":100000,"rows_first":2000,"rows_last":500,"rows_between":2000,"halvings":0,"cell_chars":16384,"cell_head_chars":4096},"cells_cut":0,"cells_raw":0,"read":"whole","date_system":"1900"}

{"sheet":"Index","index":0,"n_rows":52,"n_cols":10,"rows_kept":52,"cut":false,"hidden":false,"merged":[[51,3,51,9],[38,3,38,9],[39,3,39,9],[40,3,40,9],[41,3,41,9],[44,3,44,9],[45,3,45,9],[46,3,46,9],[47,3,47,9],[48,3,48,9],[49,3,49,9],[50,3,50,9],[34,3,34,9],[35,3,35,9],[36,3,36,9],[37,3,37,9],[22,3,22,9],[23,3,23,9],[27,3,27,9],[28,4,28,8],[30,4,30,8],[31,4,31,8],[24,3,24,9],[29,4,29,8],[21,3,21,9],[5,4,5,8],[6,5,6,8],[7,5,7,8],[8,5,8,8],[10,5,10,8],[13,3,13,9],[14,3,14,9],[15,3,15,9],[18,3,18,9],[19,3,19,9],[20,3,20,9],[9,5,9,8]]}
[]
[]
[]
[]
[]
[null,null,null,null,"                                      XBRL Excel Utility"]
[null,null,null,null,"1.","Overview"]
[null,null,null,null,"2.","Before you begin"]
[null,null,null,null,"3.","Index"]
[null,null,null,null,"4.","Steps for Filing Voting Result"]
[null,null,null,null,"5.","Fill up the data in excel utility"]
[]
[]
[null,null,null,"1. Overview"]
[null,null,null,"The excel utility can be used for creating the XBRL/XML file for efiling of Voting Result"]
[null,null,null,"XBRL filling consists of two processes. Firstly generation of XBRL/XML file and upload of generated XBRL/XML file to BSE Listing Center Website (www.listing.bseindia.com)."]
[]
[]
[null,null,null," 2.  Before you begin"]
[null,null,null,"1. The version of Microsoft Excel in your system should be Microsoft Office Excel 2007 and above."]
[null,null,null,"2. The system should have a file compression software to unzip excel utility file."]
[null,null,null,"3. Make sure that you have downloaded the latest Excel Utility from BSE Website to your local system."]
[null,null,null,"4. Make sure that you have downloaded the Chrome Browser to view report generated from Excel utility"]
[null,null,null,"5. Please enable the Macros (if disabled) as per instructions given in manual, so that all the functionalities of  Excel Utility works fine. Please first go through Enable Macro - Manual attached with zip file."]
[null,null,null,"6. Kindly use this file in local system instead of OneDrive/shared drive.\nBecause it may gives an error \"Run-time error '52' : Bad file name or number\" While clicking on textblock button if files saved on OneDrive/shared drive."]
[]
[]
[null,null,null,"3. Index "]
[null,null,null,1,"Details of general information about company",null,null,null,null,"General Info"]
[null,null,null,{"$f":"D29+1","v":2},"Scrutinizer Details",null,null,null,null,"Scrutinizer Details"]
[null,null,null,{"$f":"D30+1","v":3},"Voting Result By Companies",null,null,null,null,"Voting Results"]
[null,null,null,4,"Voting Result Format ",null,null,null,null,"Resolutions"]
[]
[]
[null,null,null,"4. Steps for Filing Voting Result"]
[null,null,null,"I.  Fill up the data: Navigate to each field of every section in the sheet to provide applicable data in correct format.  (Formats will get reflected while filling data.)  \n   - Use paste special command to paste data from other sheet.\n   - Use \"Home\" button (cntrl + H) to toggle between the sheets."]
[null,null,null,"II. Validating Sheets:  Click on the ''Validate \"  button to ensure that the sheet has been properly filled and also data has been furnished in proper format. If there are some errors on the sheet, excel utility will prompt you about the same."]
[null,null,null,"III. Validate All Sheets:  Click on the ''Home\"  button. And then click on \"Validate All Sheet\" button to ensure that all sheets has been properly filled and validated successfully. If there are some errors on the sheet, excel utility will prompt you about the same and stop validation at the same time. After correction, once again follow the same procedure to validate all sheets."]
[null,null,null,"Excel Utility will not allow you to generate XBRL/XML until you rectify all errors."]
[null,null,null,"IV. Generate XML :   Excel Utility will not allow you to generate XBRL/XML unless successful validation of all sheet is completed. Now click on 'Generate XML'' to generate XBRL/XML file. \n    - Save the XBRL/XML file in your desired folder in local system. "]
[null,null,null,"V. Generate Report :   Excel Utility will allow you to generate Report. Now click on 'Generate Report'' to generate html report.   \n     - Save the HTML Report file in your desired folder in local system.     \n     - To view HTML Report open \"Chrome Web Browser\" . \n     - To print report in PDF Format, Click on print button and save as PDF."]
[null,null,null,"VI. Upload XML file to BSE Listing Center: For uploading the XBRL/XML file generated through  Utility, login to BSE Listing Center and upload generated xml file. On Upload screen provide the required information and browse to select XML file and submit the XML."]
[]
[]
[null,null,null,"5. Fill up the data in excel utility"]
[null,null,null,"1. Cells with red fonts indicate mandatory fields."]
[null,null,null,"2. If mandatory field is left empty, then Utility will not allow you to proceed further for generating XML."]
[null,null,null,"3. You are not allowed to enter data in the Grey Cells."]
[null,null,null,"4. If fields are not applicable to your company then leave it blank. Do not insert Zero unless it is a mandatory field."]
[null,null,null,"5. Data provided must be in correct format, otherwise Utility will not allow you to proceed further for generating XML."]
[null,null,null,"6. Select data from \"Dropdown list\" wherever applicable."]
[null,null,null,"7. Adding Notes:  Click on \"Add Notes\" button to add notes"]

{"sheet":"General Info","index":1,"n_rows":16,"n_cols":13,"rows_kept":16,"cut":false,"hidden":false,"merged":[[4,4,4,5]]}
[null,null,null,null,null,null,null,null,null,null,null,null,"AGM"]
[null,null,null,null,null,null,null,null,null,null,null,null,"EGM"]
[null,null,null,null,null,null,null,null,null,null,null,null,"Postal Ballot"]
[" ",null,null,null,null,null,null,null,null,null,null,null,"Court Convened Meeting"]
[null,null,null,null,"General information about company"]
[null,null,null,null,"Scrip code","521210"]
[null,null,null,null,"NSE Symbol","N.A"]
[null,null,null,null,"MSEI Symbol","N.A"]
[null,null,null,null,"ISIN","INE117C01010"]
[null,null,null,null,"Name of the company","CITYMAN LIMITED"]
[null,null,null,null,null,""]
[null,null,null,null,null,""]
[null,null,null,null,"Type of meeting","AGM"]
[null,null,null,null,"Date of the meeting / last day of receipt of postal ballot forms (in case of Postal Ballot)","30-09-2025"]
[null,null,null,null,"Start time of the meeting","1:00 PM"]
[null,null,null,null,"End time of the meeting","1:40 PM"]

{"sheet":"Scrutinizer Details","index":2,"n_rows":14,"n_cols":22,"rows_kept":14,"cut":false,"hidden":false,"merged":[[7,4,7,5]]}
[null,null,null,null,null,null,null,null,null,null,null,null,null,null,null,null,null,"Advocate","CA","CS","CWA","Others"]
[]
[]
[]
[]
[]
[]
[null,null,null,null,"Scrutinizer Details"]
[null,null,null,null,"Name of the Scrutinizer","KRISHNAN POTTY JAYARAJ"]
[null,null,null,null,"Firms Name","KRISHNAN POTTY JAYARAJ"]
[null,null,null,null,"Qualification","CS"]
[null,null,null,null,"Membership Number","9568"]
[null,null,null,null,"Date of Board Meeting in which appointed","29-05-2025"]
[null,null,null,null,"Date of Issuance of Report to the company","01-10-2025"]

{"sheet":"Voting Results","index":3,"n_rows":55,"n_cols":18,"rows_kept":55,"cut":false,"hidden":false,"merged":[[5,3,5,4],[8,3,8,4],[11,3,11,4]]}
[null,null,null,null,null,null,null,null,null,null,null,null,"Ordinary","Yes",null,"AGM"]
[null,null,null,null,null,null,null,null,null,null,null,null,"Special","No",null,"EGM"]
[null,null,null,null,null,null,null,null,null,null,null,null,null,null,null,"Postal Ballot"]
[null,null,null,null,null,null,null,null,null,null,null,null,null,null,0,"Court Convened Meeting"]
[null,null,null,null,null,null,null,null,null,null,null,null,null,null,1]
[null,null,null,"Voting results",null,null,null,null,null,null,null,null,null,null,2]
[null,null,null,"Record date","23-09-2025",null,null,null,null,null,null,null,null,null,3,null,null,"Date of record"]
[null,null,null,"Total number of shareholders on record date",8542,null,null,null,null,null,null,null,null,null,4,null,null,"Total number of shareholders on record date"]
[null,null,null,"No. of shareholders present in the meeting either in person or through proxy",null,null,null,null,null,null,null,null,null,null,5]
[null,null,null,"a) Promoters and Promoter group",0,null,null,null,null,null,null,null,null,null,6,null,null,"Number of promoters present in the meeting either in person or through proxy"]
[null,null,null,"b) Public",0,null,null,null,null,null,null,null,null,null,7,null,null,"Number of public shareholders present in the meeting either in person or through proxy"]
[null,null,null,"No. of shareholders attended the meeting through video conferencing",null,null,null,null,null,null,null,null,null,null,8]
[null,null,null,"a) Promoters and Promoter group",1,null,null,null,null,null,null,null,null,null,9,null,null,"Number of promoters attended the meeting through video conferencing"]
[null,null,null,"b) Public",67,null,null,null,null,null,null,null,null,null,10,null,null,"Number of public shareholders attended the meeting through video conferencing"]
[null,null,null,"No. of resolution passed in the meeting",5,null,null,null,null,null,null,null,null,null,11,null,null,"Number of resolution passed in the meeting"]
[null,null,null,"Disclosure of notes on voting results",null,null,null,null,null,null,null,null,null,null,12,null,null,"Disclosure of notes on voting results"]
[null,null,null,null,null,null,null,null,null,null,null,null,null,null,13]
[null,null,null,null,null,null,null,null,null,null,null,null,null,null,14]
[null,null,null,null,null,null,null,null,null,null,null,null,null,null,15]
[null,null,null,null,null,null,null,null,null,null,null,null,null,null,16]
[null,null,null,null,null,null,null,null,null,null,null,null,null,null,17]
[null,null,null,null,null,null,null,null,null,null,null,null,null,null,18]
[null,null,null,null,null,null,null,null,null,null,null,null,null,null,19]
[null,null,null,null,null,null,null,null,null,null,null,null,null,null,20]
[null,null,null,null,null,null,null,null,null,null,null,null,null,null,21]
[null,null,null,null,null,null,null,null,null,null,null,null,null,null,22]
[null,null,null,null,null,null,null,null,null,null,null,null,null,null,23]
[null,null,null,null,null,null,null,null,null,null,null,null,null,null,24]
[null,null,null,null,null,null,null,null,null,null,null,null,null,null,25]
[null,null,null,null,null,null,null,null,null,null,null,null,null,null,26]
[null,null,null,null,null,null,null,null,null,null,null,null,null,null,27]
[null,null,null,null,null,null,null,null,null,null,null,null,null,null,24]
[null,null,null,null,null,null,null,null,null,null,null,null,null,null,28]
[null,null,null,null,null,null,null,null,null,null,null,null,null,null,29]
[null,null,null,null,null,null,null,null,null,null,null,null,null,null,30]
[null,null,null,null,null,null,null,null,null,null,null,null,null,null,31]
[null,null,null,null,null,null,null,null,null,null,null,null,null,null,32]
[null,null,null,null,null,null,null,null,null,null,null,null,null,null,33]
[null,null,null,null,null,null,null,null,null,null,null,null,null,null,34]
[null,null,null,null,null,null,null,null,null,null,null,null,null,null,35]
[null,null,null,null,null,null,null,null,null,null,null,null,null,null,36]
[null,null,null,null,null,null,null,null,null,null,null,null,null,null,37]
[null,null,null,null,null,null,null,null,null,null,null,null,null,null,38]
[null,null,null,null,null,null,null,null,null,null,null,null,null,null,39]
[null,null,null,null,null,null,null,null,null,null,null,null,null,null,40]
[null,null,null,null,null,null,null,null,null,null,null,null,null,null,41]
[null,null,null,null,null,null,null,null,null,null,null,null,null,null,42]
[null,null,null,null,null,null,null,null,null,null,null,null,null,null,43]
[null,null,null,null,null,null,null,null,null,null,null,null,null,null,44]
[null,null,null,null,null,null,null,null,null,null,null,null,null,null,45]
[null,null,null,null,null,null,null,null,null,null,null,null,null,null,46]
[null,null,null,null,null,null,null,null,null,null,null,null,null,null,47]
[null,null,null,null,null,null,null,null,null,null,null,null,null,null,48]
[null,null,null,null,null,null,null,null,null,null,null,null,null,null,49]
[null,null,null,null,null,null,null,null,null,null,null,null,null,null,50]

{"sheet":"Resolution","index":4,"n_rows":35,"n_cols":25,"rows_kept":35,"cut":false,"hidden":true,"merged":[[30,4,30,6],[31,4,31,5],[32,4,32,5],[33,4,33,5],[34,4,34,5],[27,4,27,10],[27,11,27,12],[26,4,26,10],[26,11,26,12],[8,8,8,12],[9,8,9,12],[10,8,10,12],[8,4,8,7],[9,4,9,7],[10,4,10,7],[7,4,7,12],[12,4,12,5],[13,4,16,4],[17,4,20,4],[21,4,24,4],[13,6,15,6],[17,6,19,6],[21,6,23,6]]}
[null,null,null,null,null,null,null,null,null,null,null,null,null,null,null,null,null,null,"Ordinary","Yes"]
[null,null,null,null,null,null,null,null,null,null,null,null,null,null,null,null,null,null,"Special","No"]
[]
[]
[]
[]
[]
[null,null,null,null,"Resolution"]
[null,null,null,null,"Resolution required: (Ordinary / Special)",null,null,null,null,null,null,null,null,null,null,null,null,"Type of resolution"]
[null,null,null,null,"Whether promoter/promoter group are interested in the agenda/resolution?",null,null,null,null,null,null,null,null,null,null,null,null,"Whether promoter or promoter group are interested in the agenda or resolution"]
[null,null,null,null,"Description of resolution considered",null,null,null,null,null,null,null,null,null,null,null,null,"Description of resolution considered"]
[null,null,null,null,"Category","Mode of voting","No. of shares held                 ","No. of votes polled               ","% of Votes polled on outstanding shares ","No. of votes – in favour","No. of votes – against","% of votes in favour on votes polled ","% of Votes against on votes polled "]
[null,null,null,null,null,null,"(1)","(2)","(3)=[(2)/(1)]*100 ","(4)","(5)","(6)=[(4)/(2)]*100","(7)=[(5)/(2)]*100"]
[null,null,null,null,"Promoter and Promoter Group","E-Voting",null,null,{"$f":"(IF($G$14=\"\",\"\",IF(G$14=0,\"0\",IF(COUNT(H14,$G$14),IFERROR(IF((H14)=\"\",\"\",ROUND(H14/$G$14*100,4)),\"\"),\"\"))))","v":""},null,null,{"$f":"(IF(COUNT(J14,H14),IFERROR(ROUND(J14/H14*100,4),0),\"\"))","v":""},{"$f":"(IF(COUNT(K14,H14),IFERROR(ROUND(K14/H14*100,4),0),\"\"))","v":""},null,null,null,null,null,null,null,null,null,{"$f":"IF($G$14=\"\",\"\",IF($G$14>=H14,H14,\"\"))","v":""},{"$f":"IF(H14=\"\",\"\",IF(J14<0,\"\",IF(SUM(H14-K14)>=J14,J14,\"\")))","v":""},{"$f":"IF(H14=\"\",\"\",IF(SUM(H14-J14)>=K14,K14,\"\"))","v":""}]
[null,null,null,null,null,"Poll",null,null,{"$f":"(IF($G$14=\"\",\"\",IF(G$14=0,\"0\",IF(COUNT(H15,$G$14),IFERROR(IF((H15)=\"\",\"\",ROUND(H15/$G$14*100,4)),\"\"),\"\"))))","v":""},null,null,{"$f":"(IF(COUNT(J15,H15),IFERROR(ROUND(J15/H15*100,4),0),\"\"))","v":""},"",null,null,null,null,null,null,null,null,null,{"$f":"IF($G$14=\"\",\"\",IF($G$14>=H15,H15,\"\"))","v":""},{"$f":"IF(H15=\"\",\"\",IF(J15<0,\"\",IF(SUM(H15-K15)>=J15,J15,\"\")))","v":""},{"$f":"IF(H15=\"\",\"\",IF(SUM(H15-J15)>=K15,K15,\"\"))","v":""}]
[null,null,null,null,null,"Postal Ballot (if applicable)",null,null,"",null,null,{"$f":"(IF(COUNT(J16,H16),IFERROR(ROUND(J16/H16*100,4),0),\"\"))","v":""},"",null,null,null,null,null,null,null,null,null,"",{"$f":"IF(H16=\"\",\"\",IF(J16<0,\"\",IF(SUM(H16-K16)>=J16,J16,\"\")))","v":""},{"$f":"IF(H16=\"\",\"\",IF(SUM(H16-J16)>=K16,K16,\"\"))","v":""}]
[null,null,null,null,null,"Total",{"$f":"+IF(COUNT(G14),SUM(G14),\"\")","v":""},{"$f":"+IF(COUNT(H14:H16),ROUND(SUM(H14:H16),2),\"\")","v":""},{"$f":"(IF(COUNT(H17,G17),IFERROR(ROUND(H17/G17*100,4),0),\"\"))","v":""},{"$f":"+IF(COUNT(J14:J16),ROUND(SUM(J14:J16),2),\"\")","v":""},"",{"$f":"(IF(COUNT(J17,H17),IFERROR(ROUND(J17/H17*100,4),0),\"\"))","v":""},""]
[null,null,null,null,"Public- Institutions","E-Voting",null,null,{"$f":"(IF($G$18=\"\",\"\",IF(G$18=0,\"0\",IF(COUNT(H18,$G$18),IFERROR(IF((H18)=\"\",\"\",ROUND(H18/$G$18*100,4)),\"\"),\"\"))))","v":""},null,null,{"$f":"(IF(COUNT(J18,H18),IFERROR(ROUND(J18/H18*100,4),0),\"\"))","v":""},"",null,null,null,null,null,null,null,null,null,{"$f":"IF($G$18=\"\",\"\",IF($G$18>=H18,H18,\"\"))","v":""},{"$f":"IF(H18=\"\",\"\",IF(J18<0,\"\",IF(SUM(H18-K18)>=J18,J18,\"\")))","v":""},{"$f":"IF(H18=\"\",\"\",IF(SUM(H18-J18)>=K18,K18,\"\"))","v":""}]
[null,null,null,null,null,"Poll",null,null,{"$f":"(IF($G$18=\"\",\"\",IF(G$18=0,\"0\",IF(COUNT(H19,$G$18),IFERROR(IF((H19)=\"\",\"\",ROUND(H19/$G$18*100,4)),\"\"),\"\"))))","v":""},null,null,{"$f":"(IF(COUNT(J19,H19),IFERROR(ROUND(J19/H19*100,4),0),\"\"))","v":""},"",null,null,null,null,null,null,null,null,null,{"$f":"IF($G$18=\"\",\"\",IF($G$18>=H19,H19,\"\"))","v":""},"",""]
[null,null,null,null,null,"Postal Ballot (if applicable)",null,null,"",null,null,"","",null,null,null,null,null,null,null,null,null,"","",""]
[null,null,null,null,null,"Total",{"$f":"+IF(COUNT(G18),SUM(G18),\"\")","v":""},{"$f":"+IF(COUNT(H18:H20),ROUND(SUM(H18:H20),2),\"\")","v":""},{"$f":"(IF(COUNT(H21,G21),IFERROR(ROUND(H21/G21*100,4),0),\"\"))","v":""},{"$f":"+IF(COUNT(J18:J20),ROUND(SUM(J18:J20),2),\"\")","v":""},{"$f":"+IF(COUNT(K18:K20),ROUND(SUM(K18:K20),2),\"\")","v":""},"",""]
[null,null,null,null,"Public- Non Institutions","E-Voting",null,null,{"$f":"(IF($G$22=\"\",\"\",IF(G$22=0,\"0\",IF(COUNT(H22,$G$22),IFERROR(IF((H22)=\"\",\"\",ROUND(H22/$G$22*100,4)),\"\"),\"\"))))","v":""},null,null,"","",null,null,null,null,null,null,null,null,null,{"$f":"IF($G$22=\"\",\"\",IF($G$22>=H22,H22,\"\"))","v":""},"",""]
[null,null,null,null,null,"Poll",null,null,{"$f":"(IF($G$22=\"\",\"\",IF(G$22=0,\"0\",IF(COUNT(H23,$G$22),IFERROR(IF((H23)=\"\",\"\",ROUND(H23/$G$22*100,4)),\"\"),\"\"))))","v":""},null,null,"","",null,null,null,null,null,null,null,null,null,{"$f":"IF($G$22=\"\",\"\",IF($G$22>=H23,H23,\"\"))","v":""},"",""]
[null,null,null,null,null,"Postal Ballot (if applicable)",null,null,"",null,null,"","",null,null,null,null,null,null,null,null,null,"","",""]
[null,null,null,null,null,"Total",{"$f":"+IF(COUNT(G22),SUM(G22),\"\")","v":""},{"$f":"+IF(COUNT(H22:H24),ROUND(SUM(H22:H24),2),\"\")","v":""},{"$f":"(IF(COUNT(H25,G25),IFERROR(ROUND(H25/G25*100,4),0),\"\"))","v":""},{"$f":"+IF(COUNT(J22:J24),ROUND(SUM(J22:J24),2),\"\")","v":""},{"$f":"+IF(COUNT(K22:K24),ROUND(SUM(K22:K24),2),\"\")","v":""},"",""]
[null,null,null,null,"Total","Total",{"$f":"+IF(COUNT(G17,G21,G25),ROUND(SUM(G17,G21,G25),2),\"\")","v":""},{"$f":"+IF(COUNT(H17,H21,H25),ROUND(SUM(H17,H21,H25),2),\"\")","v":""},{"$f":"(IF(COUNT(H26,G26),IFERROR(ROUND(H26/G26*100,4),0),\"\"))","v":""},"","","",""]
[null,null,null,null,"Whether resolution is Pass or Not.",null,null,null,null,null,null,null,null,null,null,null,null,"Whether resolution is Pass or Not."]
[null,null,null,null,"Disclosure of notes on resolution",null,null,null,null,null,null,null,null,null,null,null,null,"Disclosure of notes on voting resolution"]
[]
[null,null,null,null,"* this fields are optional"]
[null,null,null,null,"Details of Invalid Votes"]
[null,null,null,null,"Category",null,"No. of Votes"]
[null,null,null,null,"Promoter and Promoter Group"]
[null,null,null,null,"Public Insitutions"]
[null,null,null,null,"Public - Non Insitutions"]

{"sheet":"Resolution (1)","index":5,"n_rows":35,"n_cols":25,"rows_kept":35,"cut":false,"hidden":false,"merged":[[32,4,32,5],[33,4,33,5],[34,4,34,5],[26,4,26,10],[26,11,26,12],[27,4,27,10],[27,11,27,12],[30,4,30,6],[31,4,31,5],[21,4,24,4],[21,6,23,6],[7,4,7,12],[8,4,8,7],[8,8,8,12],[9,4,9,7],[9,8,9,12],[10,4,10,7],[10,8,10,12],[12,4,12,5],[13,4,16,4],[13,6,15,6],[17,4,20,4],[17,6,19,6]]}
[null,null,null,null,null,null,null,null,null,null,null,null,null,null,null,null,null,null,"Ordinary","Yes"]
[null,null,null,null,null,null,null,null,null,null,null,null,null,null,null,null,null,null,"Special","No"]
[]
[]
[]
[]
[]
[null,null,null,null,"Resolution (1)"]
[null,null,null,null,"Resolution required: (Ordinary / Special)",null,null,null,"Ordinary",null,null,null,null,null,null,null,null,"Type of resolution"]
[null,null,null,null,"Whether promoter/promoter group are interested in the agenda/resolution?",null,null,null,"No",null,null,null,null,null,null,null,null,"Whether promoter or promoter group are interested in the agenda or resolution"]
[null,null,null,null,"Description of resolution considered",null,null,null,"Adoption of Audited Financial Statements for the year ended March 31, 2025.",null,null,null,null,null,null,null,null,"Description of resolution considered"]
[null,null,null,null,"Category","Mode of voting","No. of shares held                 ","No. of votes polled               ","% of Votes polled on outstanding shares ","No. of votes – in favour","No. of votes – against","% of votes in favour on votes polled ","% of Votes against on votes polled "]
[null,null,null,null,null,null,"(1)","(2)","(3)=[(2)/(1)]*100 ","(4)","(5)","(6)=[(4)/(2)]*100","(7)=[(5)/(2)]*100"]
[null,null,null,null,"Promoter and Promoter Group","E-Voting",8402132,7941979,{"$f":"(IF($G$14=\"\",\"\",IF(G$14=0,\"0\",IF(COUNT(H14,$G$14),IFERROR(IF((H14)=\"\",\"\",ROUND(H14/$G$14*100,4)),\"\"),\"\"))))","v":94.523399999999995},7941979,0,{"$f":"(IF(COUNT(J14,H14),IFERROR(ROUND(J14/H14*100,4),0),\"\"))","v":100},{"$f":"(IF(COUNT(K14,H14),IFERROR(ROUND(K14/H14*100,4),0),\"\"))","v":0},null,null,null,null,null,null,null,null,null,{"$f":"IF($G$14=\"\",\"\",IF($G$14>=H14,H14,\"\"))","v":7941979},{"$f":"IF(H14=\"\",\"\",IF(J14<0,\"\",IF(SUM(H14-K14)>=J14,J14,\"\")))","v":7941979},{"$f":"IF(H14=\"\",\"\",IF(SUM(H14-J14)>=K14,K14,\"\"))","v":0}]
[null,null,null,null,null,"Poll",null,0,{"$f":"(IF($G$14=\"\",\"\",IF(G$14=0,\"0\",IF(COUNT(H15,$G$14),IFERROR(IF((H15)=\"\",\"\",ROUND(H15/$G$14*100,4)),\"\"),\"\"))))","v":0},0,0,{"$f":"(IF(COUNT(J15,H15),IFERROR(ROUND(J15/H15*100,4),0),\"\"))","v":0},0,null,null,null,null,null,null,null,null,null,{"$f":"IF($G$14=\"\",\"\",IF($G$14>=H15,H15,\"\"))","v":0},{"$f":"IF(H15=\"\",\"\",IF(J15<0,\"\",IF(SUM(H15-K15)>=J15,J15,\"\")))","v":0},{"$f":"IF(H15=\"\",\"\",IF(SUM(H15-J15)>=K15,K15,\"\"))","v":0}]
[null,null,null,null,null,"Postal Ballot (if applicable)",null,0,0,0,0,{"$f":"(IF(COUNT(J16,H16),IFERROR(ROUND(J16/H16*100,4),0),\"\"))","v":0},0,null,null,null,null,null,null,null,null,null,0,{"$f":"IF(H16=\"\",\"\",IF(J16<0,\"\",IF(SUM(H16-K16)>=J16,J16,\"\")))","v":0},{"$f":"IF(H16=\"\",\"\",IF(SUM(H16-J16)>=K16,K16,\"\"))","v":0}]
[null,null,null,null,null,"Total",{"$f":"+IF(COUNT(G14),SUM(G14),\"\")","v":8402132},{"$f":"+IF(COUNT(H14:H16),ROUND(SUM(H14:H16),2),\"\")","v":7941979},{"$f":"(IF(COUNT(H17,G17),IFERROR(ROUND(H17/G17*100,4),0),\"\"))","v":94.523399999999995},{"$f":"+IF(COUNT(J14:J16),ROUND(SUM(J14:J16),2),\"\")","v":7941979},0,{"$f":"(IF(COUNT(J17,H17),IFERROR(ROUND(J17/H17*100,4),0),\"\"))","v":100},0]
[null,null,null,null,"Public- Institutions","E-Voting",2000,0,{"$f":"(IF($G$18=\"\",\"\",IF(G$18=0,\"0\",IF(COUNT(H18,$G$18),IFERROR(IF((H18)=\"\",\"\",ROUND(H18/$G$18*100,4)),\"\"),\"\"))))","v":0},0,0,{"$f":"(IF(COUNT(J18,H18),IFERROR(ROUND(J18/H18*100,4),0),\"\"))","v":0},0,null,null,null,null,null,null,null,null,null,{"$f":"IF($G$18=\"\",\"\",IF($G$18>=H18,H18,\"\"))","v":0},{"$f":"IF(H18=\"\",\"\",IF(J18<0,\"\",IF(SUM(H18-K18)>=J18,J18,\"\")))","v":0},{"$f":"IF(H18=\"\",\"\",IF(SUM(H18-J18)>=K18,K18,\"\"))","v":0}]
[null,null,null,null,null,"Poll",null,0,{"$f":"(IF($G$18=\"\",\"\",IF(G$18=0,\"0\",IF(COUNT(H19,$G$18),IFERROR(IF((H19)=\"\",\"\",ROUND(H19/$G$18*100,4)),\"\"),\"\"))))","v":0},0,0,{"$f":"(IF(COUNT(J19,H19),IFERROR(ROUND(J19/H19*100,4),0),\"\"))","v":0},0,null,null,null,null,null,null,null,null,null,{"$f":"IF($G$18=\"\",\"\",IF($G$18>=H19,H19,\"\"))","v":0},0,0]
[null,null,null,null,null,"Postal Ballot (if applicable)",null,0,0,0,0,0,0,null,null,null,null,null,null,null,null,null,0,0,0]
[null,null,null,null,null,"Total",{"$f":"+IF(COUNT(G18),SUM(G18),\"\")","v":2000},{"$f":"+IF(COUNT(H18:H20),ROUND(SUM(H18:H20),2),\"\")","v":0},{"$f":"(IF(COUNT(H21,G21),IFERROR(ROUND(H21/G21*100,4),0),\"\"))","v":0},{"$f":"+IF(COUNT(J18:J20),ROUND(SUM(J18:J20),2),\"\")","v":0},{"$f":"+IF(COUNT(K18:K20),ROUND(SUM(K18:K20),2),\"\")","v":0},0,0]
[null,null,null,null,"Public- Non Institutions","E-Voting",3296968,432264,{"$f":"(IF($G$22=\"\",\"\",IF(G$22=0,\"0\",IF(COUNT(H22,$G$22),IFERROR(IF((H22)=\"\",\"\",ROUND(H22/$G$22*100,4)),\"\"),\"\"))))","v":13.111000000000001},284501,147763,65.816500000000005,34.183500000000002,null,null,null,null,null,null,null,null,null,{"$f":"IF($G$22=\"\",\"\",IF($G$22>=H22,H22,\"\"))","v":432264},284501,147763]
[null,null,null,null,null,"Poll",null,0,{"$f":"(IF($G$22=\"\",\"\",IF(G$22=0,\"0\",IF(COUNT(H23,$G$22),IFERROR(IF((H23)=\"\",\"\",ROUND(H23/$G$22*100,4)),\"\"),\"\"))))","v":0},0,0,0,0,null,null,null,null,null,null,null,null,null,{"$f":"IF($G$22=\"\",\"\",IF($G$22>=H23,H23,\"\"))","v":0},0,0]
[null,null,null,null,null,"Postal Ballot (if applicable)",null,0,0,0,0,0,0,null,null,null,null,null,null,null,null,null,0,0,0]
[null,null,null,null,null,"Total",{"$f":"+IF(COUNT(G22),SUM(G22),\"\")","v":3296968},{"$f":"+IF(COUNT(H22:H24),ROUND(SUM(H22:H24),2),\"\")","v":432264},{"$f":"(IF(COUNT(H25,G25),IFERROR(ROUND(H25/G25*100,4),0),\"\"))","v":13.111000000000001},{"$f":"+IF(COUNT(J22:J24),ROUND(SUM(J22:J24),2),\"\")","v":284501},{"$f":"+IF(COUNT(K22:K24),ROUND(SUM(K22:K24),2),\"\")","v":147763},65.816500000000005,34.183500000000002]
[null,null,null,null,"Total","Total",{"$f":"+IF(COUNT(G17,G21,G25),ROUND(SUM(G17,G21,G25),2),\"\")","v":11701100},{"$f":"+IF(COUNT(H17,H21,H25),ROUND(SUM(H17,H21,H25),2),\"\")","v":8374243},{"$f":"(IF(COUNT(H26,G26),IFERROR(ROUND(H26/G26*100,4),0),\"\"))","v":71.567999999999998},8226480,147763,98.235500000000002,1.7645]
[null,null,null,null,"Whether resolution is Pass or Not.",null,null,null,null,null,null,"Yes",null,null,null,null,null,"Whether resolution is Pass or Not."]
[null,null,null,null,"Disclosure of notes on resolution",null,null,null,null,null,null,null,null,null,null,null,null,"Disclosure of notes on voting resolution"]
[]
[null,null,null,null,"* this fields are optional"]
[null,null,null,null,"Details of Invalid Votes"]
[null,null,null,null,"Category",null,"No. of Votes"]
[null,null,null,null,"Promoter and Promoter Group",null,0]
[null,null,null,null,"Public Insitutions",null,0]
[null,null,null,null,"Public - Non Insitutions",null,0]

{"sheet":"Resolution (2)","index":6,"n_rows":35,"n_cols":25,"rows_kept":35,"cut":false,"hidden":false,"merged":[[32,4,32,5],[33,4,33,5],[34,4,34,5],[26,4,26,10],[26,11,26,12],[27,4,27,10],[27,11,27,12],[30,4,30,6],[31,4,31,5],[21,4,24,4],[21,6,23,6],[7,4,7,12],[8,4,8,7],[8,8,8,12],[9,4,9,7],[9,8,9,12],[10,4,10,7],[10,8,10,12],[12,4,12,5],[13,4,16,4],[13,6,15,6],[17,4,20,4],[17,6,19,6]]}
[null,null,null,null,null,null,null,null,null,null,null,null,null,null,null,null,null,null,"Ordinary","Yes"]
[null,null,null,null,null,null,null,null,null,null,null,null,null,null,null,null,null,null,"Special","No"]
[]
[]
[]
[]
[]
[null,null,null,null,"Resolution (2)"]
[null,null,null,null,"Resolution required: (Ordinary / Special)",null,null,null,"Ordinary",null,null,null,null,null,null,null,null,"Type of resolution"]
[null,null,null,null,"Whether promoter/promoter group are interested in the agenda/resolution?",null,null,null,"Yes",null,null,null,null,null,null,null,null,"Whether promoter or promoter group are interested in the agenda or resolution"]
[null,null,null,null,"Description of resolution considered",null,null,null,"Re-appointment of Mr. Santhosh Joseph Karimattom (DIN: 00998412) as a Director who retires by rotation.",null,null,null,null,null,null,null,null,"Description of resolution considered"]
[null,null,null,null,"Category","Mode of voting","No. of shares held                 ","No. of votes polled               ","% of Votes polled on outstanding shares ","No. of votes – in favour","No. of votes – against","% of votes in favour on votes polled ","% of Votes against on votes polled "]
[null,null,null,null,null,null,"(1)","(2)","(3)=[(2)/(1)]*100 ","(4)","(5)","(6)=[(4)/(2)]*100","(7)=[(5)/(2)]*100"]
[null,null,null,null,"Promoter and Promoter Group","E-Voting",8402132,221667,{"$f":"(IF($G$14=\"\",\"\",IF(G$14=0,\"0\",IF(COUNT(H14,$G$14),IFERROR(IF((H14)=\"\",\"\",ROUND(H14/$G$14*100,4)),\"\"),\"\"))))","v":2.6381999999999999},221667,0,{"$f":"(IF(COUNT(J14,H14),IFERROR(ROUND(J14/H14*100,4),0),\"\"))","v":100},{"$f":"(IF(COUNT(K14,H14),IFERROR(ROUND(K14/H14*100,4),0),\"\"))","v":0},null,null,null,null,null,null,null,null,null,{"$f":"IF($G$14=\"\",\"\",IF($G$14>=H14,H14,\"\"))","v":221667},{"$f":"IF(H14=\"\",\"\",IF(J14<0,\"\",IF(SUM(H14-K14)>=J14,J14,\"\")))","v":221667},{"$f":"IF(H14=\"\",\"\",IF(SUM(H14-J14)>=K14,K14,\"\"))","v":0}]
[null,null,null,null,null,"Poll",null,0,{"$f":"(IF($G$14=\"\",\"\",IF(G$14=0,\"0\",IF(COUNT(H15,$G$14),IFERROR(IF((H15)=\"\",\"\",ROUND(H15/$G$14*100,4)),\"\"),\"\"))))","v":0},0,0,{"$f":"(IF(COUNT(J15,H15),IFERROR(ROUND(J15/H15*100,4),0),\"\"))","v":0},0,null,null,null,null,null,null,null,null,null,{"$f":"IF($G$14=\"\",\"\",IF($G$14>=H15,H15,\"\"))","v":0},{"$f":"IF(H15=\"\",\"\",IF(J15<0,\"\",IF(SUM(H15-K15)>=J15,J15,\"\")))","v":0},{"$f":"IF(H15=\"\",\"\",IF(SUM(H15-J15)>=K15,K15,\"\"))","v":0}]
[null,null,null,null,null,"Postal Ballot (if applicable)",null,0,0,0,0,{"$f":"(IF(COUNT(J16,H16),IFERROR(ROUND(J16/H16*100,4),0),\"\"))","v":0},0,null,null,null,null,null,null,null,null,null,0,{"$f":"IF(H16=\"\",\"\",IF(J16<0,\"\",IF(SUM(H16-K16)>=J16,J16,\"\")))","v":0},{"$f":"IF(H16=\"\",\"\",IF(SUM(H16-J16)>=K16,K16,\"\"))","v":0}]
[null,null,null,null,null,"Total",{"$f":"+IF(COUNT(G14),SUM(G14),\"\")","v":8402132},{"$f":"+IF(COUNT(H14:H16),ROUND(SUM(H14:H16),2),\"\")","v":221667},{"$f":"(IF(COUNT(H17,G17),IFERROR(ROUND(H17/G17*100,4),0),\"\"))","v":2.6381999999999999},{"$f":"+IF(COUNT(J14:J16),ROUND(SUM(J14:J16),2),\"\")","v":221667},0,{"$f":"(IF(COUNT(J17,H17),IFERROR(ROUND(J17/H17*100,4),0),\"\"))","v":100},0]
[null,null,null,null,"Public- Institutions","E-Voting",2000,0,{"$f":"(IF($G$18=\"\",\"\",IF(G$18=0,\"0\",IF(COUNT(H18,$G$18),IFERROR(IF((H18)=\"\",\"\",ROUND(H18/$G$18*100,4)),\"\"),\"\"))))","v":0},0,0,{"$f":"(IF(COUNT(J18,H18),IFERROR(ROUND(J18/H18*100,4),0),\"\"))","v":0},0,null,null,null,null,null,null,null,null,null,{"$f":"IF($G$18=\"\",\"\",IF($G$18>=H18,H18,\"\"))","v":0},{"$f":"IF(H18=\"\",\"\",IF(J18<0,\"\",IF(SUM(H18-K18)>=J18,J18,\"\")))","v":0},{"$f":"IF(H18=\"\",\"\",IF(SUM(H18-J18)>=K18,K18,\"\"))","v":0}]
[null,null,null,null,null,"Poll",null,0,{"$f":"(IF($G$18=\"\",\"\",IF(G$18=0,\"0\",IF(COUNT(H19,$G$18),IFERROR(IF((H19)=\"\",\"\",ROUND(H19/$G$18*100,4)),\"\"),\"\"))))","v":0},0,0,{"$f":"(IF(COUNT(J19,H19),IFERROR(ROUND(J19/H19*100,4),0),\"\"))","v":0},0,null,null,null,null,null,null,null,null,null,{"$f":"IF($G$18=\"\",\"\",IF($G$18>=H19,H19,\"\"))","v":0},0,0]
[null,null,null,null,null,"Postal Ballot (if applicable)",null,0,0,0,0,0,0,null,null,null,null,null,null,null,null,null,0,0,0]
[null,null,null,null,null,"Total",{"$f":"+IF(COUNT(G18),SUM(G18),\"\")","v":2000},{"$f":"+IF(COUNT(H18:H20),ROUND(SUM(H18:H20),2),\"\")","v":0},{"$f":"(IF(COUNT(H21,G21),IFERROR(ROUND(H21/G21*100,4),0),\"\"))","v":0},{"$f":"+IF(COUNT(J18:J20),ROUND(SUM(J18:J20),2),\"\")","v":0},{"$f":"+IF(COUNT(K18:K20),ROUND(SUM(K18:K20),2),\"\")","v":0},0,0]
[null,null,null,null,"Public- Non Institutions","E-Voting",3296968,432264,{"$f":"(IF($G$22=\"\",\"\",IF(G$22=0,\"0\",IF(COUNT(H22,$G$22),IFERROR(IF((H22)=\"\",\"\",ROUND(H22/$G$22*100,4)),\"\"),\"\"))))","v":13.111000000000001},284501,147763,65.816500000000005,34.183500000000002,null,null,null,null,null,null,null,null,null,{"$f":"IF($G$22=\"\",\"\",IF($G$22>=H22,H22,\"\"))","v":432264},284501,147763]
[null,null,null,null,null,"Poll",null,0,{"$f":"(IF($G$22=\"\",\"\",IF(G$22=0,\"0\",IF(COUNT(H23,$G$22),IFERROR(IF((H23)=\"\",\"\",ROUND(H23/$G$22*100,4)),\"\"),\"\"))))","v":0},0,0,0,0,null,null,null,null,null,null,null,null,null,{"$f":"IF($G$22=\"\",\"\",IF($G$22>=H23,H23,\"\"))","v":0},0,0]
[null,null,null,null,null,"Postal Ballot (if applicable)",null,0,0,0,0,0,0,null,null,null,null,null,null,null,null,null,0,0,0]
[null,null,null,null,null,"Total",{"$f":"+IF(COUNT(G22),SUM(G22),\"\")","v":3296968},{"$f":"+IF(COUNT(H22:H24),ROUND(SUM(H22:H24),2),\"\")","v":432264},{"$f":"(IF(COUNT(H25,G25),IFERROR(ROUND(H25/G25*100,4),0),\"\"))","v":13.111000000000001},{"$f":"+IF(COUNT(J22:J24),ROUND(SUM(J22:J24),2),\"\")","v":284501},{"$f":"+IF(COUNT(K22:K24),ROUND(SUM(K22:K24),2),\"\")","v":147763},65.816500000000005,34.183500000000002]
[null,null,null,null,"Total","Total",{"$f":"+IF(COUNT(G17,G21,G25),ROUND(SUM(G17,G21,G25),2),\"\")","v":11701100},{"$f":"+IF(COUNT(H17,H21,H25),ROUND(SUM(H17,H21,H25),2),\"\")","v":653931},{"$f":"(IF(COUNT(H26,G26),IFERROR(ROUND(H26/G26*100,4),0),\"\"))","v":5.5885999999999996},506168,147763,77.403899999999993,22.5961]
[null,null,null,null,"Whether resolution is Pass or Not.",null,null,null,null,null,null,"Yes",null,null,null,null,null,"Whether resolution is Pass or Not."]
[null,null,null,null,"Disclosure of notes on resolution",null,null,null,null,null,null,null,null,null,null,null,null,"Disclosure of notes on voting resolution"]
[]
[null,null,null,null,"* this fields are optional"]
[null,null,null,null,"Details of Invalid Votes"]
[null,null,null,null,"Category",null,"No. of Votes"]
[null,null,null,null,"Promoter and Promoter Group",null,0]
[null,null,null,null,"Public Insitutions",null,0]
[null,null,null,null,"Public - Non Insitutions",null,0]

{"sheet":"Resolution (3)","index":7,"n_rows":35,"n_cols":25,"rows_kept":35,"cut":false,"hidden":false,"merged":[[32,4,32,5],[33,4,33,5],[34,4,34,5],[26,4,26,10],[26,11,26,12],[27,4,27,10],[27,11,27,12],[30,4,30,6],[31,4,31,5],[21,4,24,4],[21,6,23,6],[7,4,7,12],[8,4,8,7],[8,8,8,12],[9,4,9,7],[9,8,9,12],[10,4,10,7],[10,8,10,12],[12,4,12,5],[13,4,16,4],[13,6,15,6],[17,4,20,4],[17,6,19,6]]}
[null,null,null,null,null,null,null,null,null,null,null,null,null,null,null,null,null,null,"Ordinary","Yes"]
[null,null,null,null,null,null,null,null,null,null,null,null,null,null,null,null,null,null,"Special","No"]
[]
[]
[]
[]
[]
[null,null,null,null,"Resolution (3)"]
[null,null,null,null,"Resolution required: (Ordinary / Special)",null,null,null,"Ordinary",null,null,null,null,null,null,null,null,"Type of resolution"]
[null,null,null,null,"Whether promoter/promoter group are interested in the agenda/resolution?",null,null,null,"Yes",null,null,null,null,null,null,null,null,"Whether promoter or promoter group are interested in the agenda or resolution"]
[null,null,null,null,"Description of resolution considered",null,null,null,"Re-appointment of Mrs. Juliana Santhosh (DIN: 08551525) as a Director who retires by rotation.",null,null,null,null,null,null,null,null,"Description of resolution considered"]
[null,null,null,null,"Category","Mode of voting","No. of shares held                 ","No. of votes polled               ","% of Votes polled on outstanding shares ","No. of votes – in favour","No. of votes – against","% of votes in favour on votes polled ","% of Votes against on votes polled "]
[null,null,null,null,null,null,"(1)","(2)","(3)=[(2)/(1)]*100 ","(4)","(5)","(6)=[(4)/(2)]*100","(7)=[(5)/(2)]*100"]
[null,null,null,null,"Promoter and Promoter Group","E-Voting",8402132,221667,{"$f":"(IF($G$14=\"\",\"\",IF(G$14=0,\"0\",IF(COUNT(H14,$G$14),IFERROR(IF((H14)=\"\",\"\",ROUND(H14/$G$14*100,4)),\"\"),\"\"))))","v":2.6381999999999999},221667,0,{"$f":"(IF(COUNT(J14,H14),IFERROR(ROUND(J14/H14*100,4),0),\"\"))","v":100},{"$f":"(IF(COUNT(K14,H14),IFERROR(ROUND(K14/H14*100,4),0),\"\"))","v":0},null,null,null,null,null,null,null,null,null,{"$f":"IF($G$14=\"\",\"\",IF($G$14>=H14,H14,\"\"))","v":221667},{"$f":"IF(H14=\"\",\"\",IF(J14<0,\"\",IF(SUM(H14-K14)>=J14,J14,\"\")))","v":221667},{"$f":"IF(H14=\"\",\"\",IF(SUM(H14-J14)>=K14,K14,\"\"))","v":0}]
[null,null,null,null,null,"Poll",null,0,{"$f":"(IF($G$14=\"\",\"\",IF(G$14=0,\"0\",IF(COUNT(H15,$G$14),IFERROR(IF((H15)=\"\",\"\",ROUND(H15/$G$14*100,4)),\"\"),\"\"))))","v":0},0,0,{"$f":"(IF(COUNT(J15,H15),IFERROR(ROUND(J15/H15*100,4),0),\"\"))","v":0},0,null,null,null,null,null,null,null,null,null,{"$f":"IF($G$14=\"\",\"\",IF($G$14>=H15,H15,\"\"))","v":0},{"$f":"IF(H15=\"\",\"\",IF(J15<0,\"\",IF(SUM(H15-K15)>=J15,J15,\"\")))","v":0},{"$f":"IF(H15=\"\",\"\",IF(SUM(H15-J15)>=K15,K15,\"\"))","v":0}]
[null,null,null,null,null,"Postal Ballot (if applicable)",null,0,0,0,0,{"$f":"(IF(COUNT(J16,H16),IFERROR(ROUND(J16/H16*100,4),0),\"\"))","v":0},0,null,null,null,null,null,null,null,null,null,0,{"$f":"IF(H16=\"\",\"\",IF(J16<0,\"\",IF(SUM(H16-K16)>=J16,J16,\"\")))","v":0},{"$f":"IF(H16=\"\",\"\",IF(SUM(H16-J16)>=K16,K16,\"\"))","v":0}]
[null,null,null,null,null,"Total",{"$f":"+IF(COUNT(G14),SUM(G14),\"\")","v":8402132},{"$f":"+IF(COUNT(H14:H16),ROUND(SUM(H14:H16),2),\"\")","v":221667},{"$f":"(IF(COUNT(H17,G17),IFERROR(ROUND(H17/G17*100,4),0),\"\"))","v":2.6381999999999999},{"$f":"+IF(COUNT(J14:J16),ROUND(SUM(J14:J16),2),\"\")","v":221667},0,{"$f":"(IF(COUNT(J17,H17),IFERROR(ROUND(J17/H17*100,4),0),\"\"))","v":100},0]
[null,null,null,null,"Public- Institutions","E-Voting",2000,0,{"$f":"(IF($G$18=\"\",\"\",IF(G$18=0,\"0\",IF(COUNT(H18,$G$18),IFERROR(IF((H18)=\"\",\"\",ROUND(H18/$G$18*100,4)),\"\"),\"\"))))","v":0},0,0,{"$f":"(IF(COUNT(J18,H18),IFERROR(ROUND(J18/H18*100,4),0),\"\"))","v":0},0,null,null,null,null,null,null,null,null,null,{"$f":"IF($G$18=\"\",\"\",IF($G$18>=H18,H18,\"\"))","v":0},{"$f":"IF(H18=\"\",\"\",IF(J18<0,\"\",IF(SUM(H18-K18)>=J18,J18,\"\")))","v":0},{"$f":"IF(H18=\"\",\"\",IF(SUM(H18-J18)>=K18,K18,\"\"))","v":0}]
[null,null,null,null,null,"Poll",null,0,{"$f":"(IF($G$18=\"\",\"\",IF(G$18=0,\"0\",IF(COUNT(H19,$G$18),IFERROR(IF((H19)=\"\",\"\",ROUND(H19/$G$18*100,4)),\"\"),\"\"))))","v":0},0,0,{"$f":"(IF(COUNT(J19,H19),IFERROR(ROUND(J19/H19*100,4),0),\"\"))","v":0},0,null,null,null,null,null,null,null,null,null,{"$f":"IF($G$18=\"\",\"\",IF($G$18>=H19,H19,\"\"))","v":0},0,0]
[null,null,null,null,null,"Postal Ballot (if applicable)",null,0,0,0,0,0,0,null,null,null,null,null,null,null,null,null,0,0,0]
[null,null,null,null,null,"Total",{"$f":"+IF(COUNT(G18),SUM(G18),\"\")","v":2000},{"$f":"+IF(COUNT(H18:H20),ROUND(SUM(H18:H20),2),\"\")","v":0},{"$f":"(IF(COUNT(H21,G21),IFERROR(ROUND(H21/G21*100,4),0),\"\"))","v":0},{"$f":"+IF(COUNT(J18:J20),ROUND(SUM(J18:J20),2),\"\")","v":0},{"$f":"+IF(COUNT(K18:K20),ROUND(SUM(K18:K20),2),\"\")","v":0},0,0]
[null,null,null,null,"Public- Non Institutions","E-Voting",3296968,432264,{"$f":"(IF($G$22=\"\",\"\",IF(G$22=0,\"0\",IF(COUNT(H22,$G$22),IFERROR(IF((H22)=\"\",\"\",ROUND(H22/$G$22*100,4)),\"\"),\"\"))))","v":13.111000000000001},284501,147763,65.816500000000005,34.183500000000002,null,null,null,null,null,null,null,null,null,{"$f":"IF($G$22=\"\",\"\",IF($G$22>=H22,H22,\"\"))","v":432264},284501,147763]
[null,null,null,null,null,"Poll",null,0,{"$f":"(IF($G$22=\"\",\"\",IF(G$22=0,\"0\",IF(COUNT(H23,$G$22),IFERROR(IF((H23)=\"\",\"\",ROUND(H23/$G$22*100,4)),\"\"),\"\"))))","v":0},0,0,0,0,null,null,null,null,null,null,null,null,null,{"$f":"IF($G$22=\"\",\"\",IF($G$22>=H23,H23,\"\"))","v":0},0,0]
[null,null,null,null,null,"Postal Ballot (if applicable)",null,0,0,0,0,0,0,null,null,null,null,null,null,null,null,null,0,0,0]
[null,null,null,null,null,"Total",{"$f":"+IF(COUNT(G22),SUM(G22),\"\")","v":3296968},{"$f":"+IF(COUNT(H22:H24),ROUND(SUM(H22:H24),2),\"\")","v":432264},{"$f":"(IF(COUNT(H25,G25),IFERROR(ROUND(H25/G25*100,4),0),\"\"))","v":13.111000000000001},{"$f":"+IF(COUNT(J22:J24),ROUND(SUM(J22:J24),2),\"\")","v":284501},{"$f":"+IF(COUNT(K22:K24),ROUND(SUM(K22:K24),2),\"\")","v":147763},65.816500000000005,34.183500000000002]
[null,null,null,null,"Total","Total",{"$f":"+IF(COUNT(G17,G21,G25),ROUND(SUM(G17,G21,G25),2),\"\")","v":11701100},{"$f":"+IF(COUNT(H17,H21,H25),ROUND(SUM(H17,H21,H25),2),\"\")","v":653931},{"$f":"(IF(COUNT(H26,G26),IFERROR(ROUND(H26/G26*100,4),0),\"\"))","v":5.5885999999999996},506168,147763,77.403899999999993,22.5961]
[null,null,null,null,"Whether resolution is Pass or Not.",null,null,null,null,null,null,"Yes",null,null,null,null,null,"Whether resolution is Pass or Not."]
[null,null,null,null,"Disclosure of notes on resolution",null,null,null,null,null,null,null,null,null,null,null,null,"Disclosure of notes on voting resolution"]
[]
[null,null,null,null,"* this fields are optional"]
[null,null,null,null,"Details of Invalid Votes"]
[null,null,null,null,"Category",null,"No. of Votes"]
[null,null,null,null,"Promoter and Promoter Group",null,0]
[null,null,null,null,"Public Insitutions",null,0]
[null,null,null,null,"Public - Non Insitutions",null,0]

{"sheet":"Resolution (4)","index":8,"n_rows":35,"n_cols":25,"rows_kept":35,"cut":false,"hidden":false,"merged":[[32,4,32,5],[33,4,33,5],[34,4,34,5],[26,4,26,10],[26,11,26,12],[27,4,27,10],[27,11,27,12],[30,4,30,6],[31,4,31,5],[21,4,24,4],[21,6,23,6],[7,4,7,12],[8,4,8,7],[8,8,8,12],[9,4,9,7],[9,8,9,12],[10,4,10,7],[10,8,10,12],[12,4,12,5],[13,4,16,4],[13,6,15,6],[17,4,20,4],[17,6,19,6]]}
[null,null,null,null,null,null,null,null,null,null,null,null,null,null,null,null,null,null,"Ordinary","Yes"]
[null,null,null,null,null,null,null,null,null,null,null,null,null,null,null,null,null,null,"Special","No"]
[]
[]
[]
[]
[]
[null,null,null,null,"Resolution (4)"]
[null,null,null,null,"Resolution required: (Ordinary / Special)",null,null,null,"Ordinary",null,null,null,null,null,null,null,null,"Type of resolution"]
[null,null,null,null,"Whether promoter/promoter group are interested in the agenda/resolution?",null,null,null,"No",null,null,null,null,null,null,null,null,"Whether promoter or promoter group are interested in the agenda or resolution"]
[null,null,null,null,"Description of resolution considered",null,null,null,"Appointment of Mr. Pramil Dev, Practicing Company Secretary as the Secretarial Auditor of the Company.",null,null,null,null,null,null,null,null,"Description of resolution considered"]
[null,null,null,null,"Category","Mode of voting","No. of shares held                 ","No. of votes polled               ","% of Votes polled on outstanding shares ","No. of votes – in favour","No. of votes – against","% of votes in favour on votes polled ","% of Votes against on votes polled "]
[null,null,null,null,null,null,"(1)","(2)","(3)=[(2)/(1)]*100 ","(4)","(5)","(6)=[(4)/(2)]*100","(7)=[(5)/(2)]*100"]
[null,null,null,null,"Promoter and Promoter Group","E-Voting",8402132,7941979,{"$f":"(IF($G$14=\"\",\"\",IF(G$14=0,\"0\",IF(COUNT(H14,$G$14),IFERROR(IF((H14)=\"\",\"\",ROUND(H14/$G$14*100,4)),\"\"),\"\"))))","v":94.523399999999995},7941979,0,{"$f":"(IF(COUNT(J14,H14),IFERROR(ROUND(J14/H14*100,4),0),\"\"))","v":100},{"$f":"(IF(COUNT(K14,H14),IFERROR(ROUND(K14/H14*100,4),0),\"\"))","v":0},null,null,null,null,null,null,null,null,null,{"$f":"IF($G$14=\"\",\"\",IF($G$14>=H14,H14,\"\"))","v":7941979},{"$f":"IF(H14=\"\",\"\",IF(J14<0,\"\",IF(SUM(H14-K14)>=J14,J14,\"\")))","v":7941979},{"$f":"IF(H14=\"\",\"\",IF(SUM(H14-J14)>=K14,K14,\"\"))","v":0}]
[null,null,null,null,null,"Poll",null,0,{"$f":"(IF($G$14=\"\",\"\",IF(G$14=0,\"0\",IF(COUNT(H15,$G$14),IFERROR(IF((H15)=\"\",\"\",ROUND(H15/$G$14*100,4)),\"\"),\"\"))))","v":0},0,0,{"$f":"(IF(COUNT(J15,H15),IFERROR(ROUND(J15/H15*100,4),0),\"\"))","v":0},0,null,null,null,null,null,null,null,null,null,{"$f":"IF($G$14=\"\",\"\",IF($G$14>=H15,H15,\"\"))","v":0},{"$f":"IF(H15=\"\",\"\",IF(J15<0,\"\",IF(SUM(H15-K15)>=J15,J15,\"\")))","v":0},{"$f":"IF(H15=\"\",\"\",IF(SUM(H15-J15)>=K15,K15,\"\"))","v":0}]
[null,null,null,null,null,"Postal Ballot (if applicable)",null,0,0,0,0,{"$f":"(IF(COUNT(J16,H16),IFERROR(ROUND(J16/H16*100,4),0),\"\"))","v":0},0,null,null,null,null,null,null,null,null,null,0,{"$f":"IF(H16=\"\",\"\",IF(J16<0,\"\",IF(SUM(H16-K16)>=J16,J16,\"\")))","v":0},{"$f":"IF(H16=\"\",\"\",IF(SUM(H16-J16)>=K16,K16,\"\"))","v":0}]
[null,null,null,null,null,"Total",{"$f":"+IF(COUNT(G14),SUM(G14),\"\")","v":8402132},{"$f":"+IF(COUNT(H14:H16),ROUND(SUM(H14:H16),2),\"\")","v":7941979},{"$f":"(IF(COUNT(H17,G17),IFERROR(ROUND(H17/G17*100,4),0),\"\"))","v":94.523399999999995},{"$f":"+IF(COUNT(J14:J16),ROUND(SUM(J14:J16),2),\"\")","v":7941979},0,{"$f":"(IF(COUNT(J17,H17),IFERROR(ROUND(J17/H17*100,4),0),\"\"))","v":100},0]
[null,null,null,null,"Public- Institutions","E-Voting",2000,0,{"$f":"(IF($G$18=\"\",\"\",IF(G$18=0,\"0\",IF(COUNT(H18,$G$18),IFERROR(IF((H18)=\"\",\"\",ROUND(H18/$G$18*100,4)),\"\"),\"\"))))","v":0},0,0,{"$f":"(IF(COUNT(J18,H18),IFERROR(ROUND(J18/H18*100,4),0),\"\"))","v":0},0,null,null,null,null,null,null,null,null,null,{"$f":"IF($G$18=\"\",\"\",IF($G$18>=H18,H18,\"\"))","v":0},{"$f":"IF(H18=\"\",\"\",IF(J18<0,\"\",IF(SUM(H18-K18)>=J18,J18,\"\")))","v":0},{"$f":"IF(H18=\"\",\"\",IF(SUM(H18-J18)>=K18,K18,\"\"))","v":0}]
[null,null,null,null,null,"Poll",null,0,{"$f":"(IF($G$18=\"\",\"\",IF(G$18=0,\"0\",IF(COUNT(H19,$G$18),IFERROR(IF((H19)=\"\",\"\",ROUND(H19/$G$18*100,4)),\"\"),\"\"))))","v":0},0,0,{"$f":"(IF(COUNT(J19,H19),IFERROR(ROUND(J19/H19*100,4),0),\"\"))","v":0},0,null,null,null,null,null,null,null,null,null,{"$f":"IF($G$18=\"\",\"\",IF($G$18>=H19,H19,\"\"))","v":0},0,0]
[null,null,null,null,null,"Postal Ballot (if applicable)",null,0,0,0,0,0,0,null,null,null,null,null,null,null,null,null,0,0,0]
[null,null,null,null,null,"Total",{"$f":"+IF(COUNT(G18),SUM(G18),\"\")","v":2000},{"$f":"+IF(COUNT(H18:H20),ROUND(SUM(H18:H20),2),\"\")","v":0},{"$f":"(IF(COUNT(H21,G21),IFERROR(ROUND(H21/G21*100,4),0),\"\"))","v":0},{"$f":"+IF(COUNT(J18:J20),ROUND(SUM(J18:J20),2),\"\")","v":0},{"$f":"+IF(COUNT(K18:K20),ROUND(SUM(K18:K20),2),\"\")","v":0},0,0]
[null,null,null,null,"Public- Non Institutions","E-Voting",3296968,432264,{"$f":"(IF($G$22=\"\",\"\",IF(G$22=0,\"0\",IF(COUNT(H22,$G$22),IFERROR(IF((H22)=\"\",\"\",ROUND(H22/$G$22*100,4)),\"\"),\"\"))))","v":13.111000000000001},284501,147763,65.816500000000005,34.183500000000002,null,null,null,null,null,null,null,null,null,{"$f":"IF($G$22=\"\",\"\",IF($G$22>=H22,H22,\"\"))","v":432264},284501,147763]
[null,null,null,null,null,"Poll",null,0,{"$f":"(IF($G$22=\"\",\"\",IF(G$22=0,\"0\",IF(COUNT(H23,$G$22),IFERROR(IF((H23)=\"\",\"\",ROUND(H23/$G$22*100,4)),\"\"),\"\"))))","v":0},0,0,0,0,null,null,null,null,null,null,null,null,null,{"$f":"IF($G$22=\"\",\"\",IF($G$22>=H23,H23,\"\"))","v":0},0,0]
[null,null,null,null,null,"Postal Ballot (if applicable)",null,0,0,0,0,0,0,null,null,null,null,null,null,null,null,null,0,0,0]
[null,null,null,null,null,"Total",{"$f":"+IF(COUNT(G22),SUM(G22),\"\")","v":3296968},{"$f":"+IF(COUNT(H22:H24),ROUND(SUM(H22:H24),2),\"\")","v":432264},{"$f":"(IF(COUNT(H25,G25),IFERROR(ROUND(H25/G25*100,4),0),\"\"))","v":13.111000000000001},{"$f":"+IF(COUNT(J22:J24),ROUND(SUM(J22:J24),2),\"\")","v":284501},{"$f":"+IF(COUNT(K22:K24),ROUND(SUM(K22:K24),2),\"\")","v":147763},65.816500000000005,34.183500000000002]
[null,null,null,null,"Total","Total",{"$f":"+IF(COUNT(G17,G21,G25),ROUND(SUM(G17,G21,G25),2),\"\")","v":11701100},{"$f":"+IF(COUNT(H17,H21,H25),ROUND(SUM(H17,H21,H25),2),\"\")","v":8374243},{"$f":"(IF(COUNT(H26,G26),IFERROR(ROUND(H26/G26*100,4),0),\"\"))","v":71.567999999999998},8226480,147763,98.235500000000002,1.7645]
[null,null,null,null,"Whether resolution is Pass or Not.",null,null,null,null,null,null,"Yes",null,null,null,null,null,"Whether resolution is Pass or Not."]
[null,null,null,null,"Disclosure of notes on resolution",null,null,null,null,null,null,null,null,null,null,null,null,"Disclosure of notes on voting resolution"]
[]
[null,null,null,null,"* this fields are optional"]
[null,null,null,null,"Details of Invalid Votes"]
[null,null,null,null,"Category",null,"No. of Votes"]
[null,null,null,null,"Promoter and Promoter Group",null,0]
[null,null,null,null,"Public Insitutions",null,0]
[null,null,null,null,"Public - Non Insitutions",null,0]

{"sheet":"Resolution (5)","index":9,"n_rows":35,"n_cols":25,"rows_kept":35,"cut":false,"hidden":false,"merged":[[32,4,32,5],[33,4,33,5],[34,4,34,5],[26,4,26,10],[26,11,26,12],[27,4,27,10],[27,11,27,12],[30,4,30,6],[31,4,31,5],[21,4,24,4],[21,6,23,6],[7,4,7,12],[8,4,8,7],[8,8,8,12],[9,4,9,7],[9,8,9,12],[10,4,10,7],[10,8,10,12],[12,4,12,5],[13,4,16,4],[13,6,15,6],[17,4,20,4],[17,6,19,6]]}
[null,null,null,null,null,null,null,null,null,null,null,null,null,null,null,null,null,null,"Ordinary","Yes"]
[null,null,null,null,null,null,null,null,null,null,null,null,null,null,null,null,null,null,"Special","No"]
[]
[]
[]
[]
[]
[null,null,null,null,"Resolution (5)"]
[null,null,null,null,"Resolution required: (Ordinary / Special)",null,null,null,"Special",null,null,null,null,null,null,null,null,"Type of resolution"]
[null,null,null,null,"Whether promoter/promoter group are interested in the agenda/resolution?",null,null,null,"Yes",null,null,null,null,null,null,null,null,"Whether promoter or promoter group are interested in the agenda or resolution"]
[null,null,null,null,"Description of resolution considered",null,null,null,"Approval of Material Related Party Transactions.",null,null,null,null,null,null,null,null,"Description of resolution considered"]
[null,null,null,null,"Category","Mode of voting","No. of shares held                 ","No. of votes polled               ","% of Votes polled on outstanding shares ","No. of votes – in favour","No. of votes – against","% of votes in favour on votes polled ","% of Votes against on votes polled "]
[null,null,null,null,null,null,"(1)","(2)","(3)=[(2)/(1)]*100 ","(4)","(5)","(6)=[(4)/(2)]*100","(7)=[(5)/(2)]*100"]
[null,null,null,null,"Promoter and Promoter Group","E-Voting",8402132,221667,{"$f":"(IF($G$14=\"\",\"\",IF(G$14=0,\"0\",IF(COUNT(H14,$G$14),IFERROR(IF((H14)=\"\",\"\",ROUND(H14/$G$14*100,4)),\"\"),\"\"))))","v":2.6381999999999999},221667,0,{"$f":"(IF(COUNT(J14,H14),IFERROR(ROUND(J14/H14*100,4),0),\"\"))","v":100},{"$f":"(IF(COUNT(K14,H14),IFERROR(ROUND(K14/H14*100,4),0),\"\"))","v":0},null,null,null,null,null,null,null,null,null,{"$f":"IF($G$14=\"\",\"\",IF($G$14>=H14,H14,\"\"))","v":221667},{"$f":"IF(H14=\"\",\"\",IF(J14<0,\"\",IF(SUM(H14-K14)>=J14,J14,\"\")))","v":221667},{"$f":"IF(H14=\"\",\"\",IF(SUM(H14-J14)>=K14,K14,\"\"))","v":0}]
[null,null,null,null,null,"Poll",null,0,{"$f":"(IF($G$14=\"\",\"\",IF(G$14=0,\"0\",IF(COUNT(H15,$G$14),IFERROR(IF((H15)=\"\",\"\",ROUND(H15/$G$14*100,4)),\"\"),\"\"))))","v":0},0,0,{"$f":"(IF(COUNT(J15,H15),IFERROR(ROUND(J15/H15*100,4),0),\"\"))","v":0},0,null,null,null,null,null,null,null,null,null,{"$f":"IF($G$14=\"\",\"\",IF($G$14>=H15,H15,\"\"))","v":0},{"$f":"IF(H15=\"\",\"\",IF(J15<0,\"\",IF(SUM(H15-K15)>=J15,J15,\"\")))","v":0},{"$f":"IF(H15=\"\",\"\",IF(SUM(H15-J15)>=K15,K15,\"\"))","v":0}]
[null,null,null,null,null,"Postal Ballot (if applicable)",null,0,0,0,0,{"$f":"(IF(COUNT(J16,H16),IFERROR(ROUND(J16/H16*100,4),0),\"\"))","v":0},0,null,null,null,null,null,null,null,null,null,0,{"$f":"IF(H16=\"\",\"\",IF(J16<0,\"\",IF(SUM(H16-K16)>=J16,J16,\"\")))","v":0},{"$f":"IF(H16=\"\",\"\",IF(SUM(H16-J16)>=K16,K16,\"\"))","v":0}]
[null,null,null,null,null,"Total",{"$f":"+IF(COUNT(G14),SUM(G14),\"\")","v":8402132},{"$f":"+IF(COUNT(H14:H16),ROUND(SUM(H14:H16),2),\"\")","v":221667},{"$f":"(IF(COUNT(H17,G17),IFERROR(ROUND(H17/G17*100,4),0),\"\"))","v":2.6381999999999999},{"$f":"+IF(COUNT(J14:J16),ROUND(SUM(J14:J16),2),\"\")","v":221667},0,{"$f":"(IF(COUNT(J17,H17),IFERROR(ROUND(J17/H17*100,4),0),\"\"))","v":100},0]
[null,null,null,null,"Public- Institutions","E-Voting",2000,0,{"$f":"(IF($G$18=\"\",\"\",IF(G$18=0,\"0\",IF(COUNT(H18,$G$18),IFERROR(IF((H18)=\"\",\"\",ROUND(H18/$G$18*100,4)),\"\"),\"\"))))","v":0},0,0,{"$f":"(IF(COUNT(J18,H18),IFERROR(ROUND(J18/H18*100,4),0),\"\"))","v":0},0,null,null,null,null,null,null,null,null,null,{"$f":"IF($G$18=\"\",\"\",IF($G$18>=H18,H18,\"\"))","v":0},{"$f":"IF(H18=\"\",\"\",IF(J18<0,\"\",IF(SUM(H18-K18)>=J18,J18,\"\")))","v":0},{"$f":"IF(H18=\"\",\"\",IF(SUM(H18-J18)>=K18,K18,\"\"))","v":0}]
[null,null,null,null,null,"Poll",null,0,{"$f":"(IF($G$18=\"\",\"\",IF(G$18=0,\"0\",IF(COUNT(H19,$G$18),IFERROR(IF((H19)=\"\",\"\",ROUND(H19/$G$18*100,4)),\"\"),\"\"))))","v":0},0,0,{"$f":"(IF(COUNT(J19,H19),IFERROR(ROUND(J19/H19*100,4),0),\"\"))","v":0},0,null,null,null,null,null,null,null,null,null,{"$f":"IF($G$18=\"\",\"\",IF($G$18>=H19,H19,\"\"))","v":0},0,0]
[null,null,null,null,null,"Postal Ballot (if applicable)",null,0,0,0,0,0,0,null,null,null,null,null,null,null,null,null,0,0,0]
[null,null,null,null,null,"Total",{"$f":"+IF(COUNT(G18),SUM(G18),\"\")","v":2000},{"$f":"+IF(COUNT(H18:H20),ROUND(SUM(H18:H20),2),\"\")","v":0},{"$f":"(IF(COUNT(H21,G21),IFERROR(ROUND(H21/G21*100,4),0),\"\"))","v":0},{"$f":"+IF(COUNT(J18:J20),ROUND(SUM(J18:J20),2),\"\")","v":0},{"$f":"+IF(COUNT(K18:K20),ROUND(SUM(K18:K20),2),\"\")","v":0},0,0]
[null,null,null,null,"Public- Non Institutions","E-Voting",3296968,432264,{"$f":"(IF($G$22=\"\",\"\",IF(G$22=0,\"0\",IF(COUNT(H22,$G$22),IFERROR(IF((H22)=\"\",\"\",ROUND(H22/$G$22*100,4)),\"\"),\"\"))))","v":13.111000000000001},284501,147763,65.816500000000005,34.183500000000002,null,null,null,null,null,null,null,null,null,{"$f":"IF($G$22=\"\",\"\",IF($G$22>=H22,H22,\"\"))","v":432264},284501,147763]
[null,null,null,null,null,"Poll",null,0,{"$f":"(IF($G$22=\"\",\"\",IF(G$22=0,\"0\",IF(COUNT(H23,$G$22),IFERROR(IF((H23)=\"\",\"\",ROUND(H23/$G$22*100,4)),\"\"),\"\"))))","v":0},0,0,0,0,null,null,null,null,null,null,null,null,null,{"$f":"IF($G$22=\"\",\"\",IF($G$22>=H23,H23,\"\"))","v":0},0,0]
[null,null,null,null,null,"Postal Ballot (if applicable)",null,0,0,0,0,0,0,null,null,null,null,null,null,null,null,null,0,0,0]
[null,null,null,null,null,"Total",{"$f":"+IF(COUNT(G22),SUM(G22),\"\")","v":3296968},{"$f":"+IF(COUNT(H22:H24),ROUND(SUM(H22:H24),2),\"\")","v":432264},{"$f":"(IF(COUNT(H25,G25),IFERROR(ROUND(H25/G25*100,4),0),\"\"))","v":13.111000000000001},{"$f":"+IF(COUNT(J22:J24),ROUND(SUM(J22:J24),2),\"\")","v":284501},{"$f":"+IF(COUNT(K22:K24),ROUND(SUM(K22:K24),2),\"\")","v":147763},65.816500000000005,34.183500000000002]
[null,null,null,null,"Total","Total",{"$f":"+IF(COUNT(G17,G21,G25),ROUND(SUM(G17,G21,G25),2),\"\")","v":11701100},{"$f":"+IF(COUNT(H17,H21,H25),ROUND(SUM(H17,H21,H25),2),\"\")","v":653931},{"$f":"(IF(COUNT(H26,G26),IFERROR(ROUND(H26/G26*100,4),0),\"\"))","v":5.5885999999999996},506168,147763,77.403899999999993,22.5961]
[null,null,null,null,"Whether resolution is Pass or Not.",null,null,null,null,null,null,"Yes",null,null,null,null,null,"Whether resolution is Pass or Not."]
[null,null,null,null,"Disclosure of notes on resolution",null,null,null,null,null,null,null,null,null,null,null,null,"Disclosure of notes on voting resolution"]
[]
[null,null,null,null,"* this fields are optional"]
[null,null,null,null,"Details of Invalid Votes"]
[null,null,null,null,"Category",null,"No. of Votes"]
[null,null,null,null,"Promoter and Promoter Group",null,0]
[null,null,null,null,"Public Insitutions",null,0]
[null,null,null,null,"Public - Non Insitutions",null,0]

{"sheet":"Taxonomy","index":10,"n_rows":70,"n_cols":5,"rows_kept":70,"cut":false,"hidden":true,"merged":[]}
["Element","Label","type","periodType","Error Message"]
["General Information"]
["ScripCode","Scrip code","in-bse-voting-types:ScripCode","duration","1) This is a mandatory field. Should be valid SCRIP CODE as per BSE Scrip Code Format. \n2) Please enter 6 digit Scrip Code."]
["Symbol","NSE Symbol","xbrli:stringItemType","duration","1) This field is mandatory.\n2) Space is not allowed."]
["MSEISymbol","MSEI Symbol","xbrli:stringItemType","duration","1) This field is mandatory.\n2) Space is not allowed."]
["ISIN","ISIN","in-bse-voting-types:ISIN","duration","Please enter 12 digit ISIN number."]
["NameOfTheCompany","Name of the company","xbrli:stringItemType","duration"]
["TypeOfMeeting","Type of meeting","in-bse-voting-types:TypeOfMeeting","duration","This is a mandatory field. Drop down Options \"AGM\" or \"EGM\" or \"Postal Ballot\" or \"Court Convened Meeting\" . If you select \"Postal Ballot\" than 'No. of shareholders present in the meeting either in person or through proxy' and 'No. of shareholders attended the meeting through video conferencing' are not mandatory."]
["DateOfMeeting","Date of the meeting / last day of receipt of postal ballot forms (in case of Postal Ballot)","xbrli:dateItemType","instant","1) This field is mandatory.\n2) Enter date in \"DD-MM-YYYY\" format.\n3) Enter a valid date."]
["StartTimeOfTheMeeting","Start time of the meeting","xbrli:stringItemType","instant","This is not mandatory field. if you enter meeting start time than meeting end time is mandatory and vice versa. Time format is  \"HH:MM AM/PM\" "]
["EndTimeOfTheMeeting","End time of the meeting","xbrli:stringItemType","instant","This is not mandatory field. if you enter meeting end time than meeting start time is mandatory and vice versa. Time format is  \"HH:MM AM/PM\" "]
["Scrutinizer Details"]
["NameOfTheScrutinizer","Name of the Scrutinizer","xbrli:stringItemType","duration","This is mandatory field. Please eneter Name of the Scrutinizer."]
["NameOfScrutinizerFirm","Firms Name","xbrli:stringItemType","duration"]
["QualificationOfTheScrutinizer","Qualification","in-bse-voting-types:Qualification","duration","Please select value from the drop-down."]
["MembershipNumberOfTheScrutinizer","Membership Number","xbrli:stringItemType","duration","This is mandatory field for CA and CS."]
["DateOfBoardMeetingInWhichAppointed","Date of Board Meeting in which appointed","xbrli:dateItemType","instant","1) This is mandatory field.\n2) Enter date in \"DD-MM-YYYY\" format.\n3) Enter a valid date."]
["DateOfIssuanceOfReportToTheCompany","Date of Issuance of Report to the company","xbrli:dateItemType","instant","1) This is mandatory field.\n2) Enter date in \"DD-MM-YYYY\" format.\n3) Enter a valid date."]
["Voting Results"]
["DateOfRecord",{"$f":"'Voting Results'!R7","v":"Date of record"},"xbrli:dateItemType","instant","1) This field is mandatory.\n2) Enter date in \"DD-MM-YYYY\" format.\n3) Enter a valid date."]
["TotalNumberOfShareholdersOnRecordDate",{"$f":"'Voting Results'!R8","v":"Total number of shareholders on record date"},"xbrli:decimalItemType","instant","1) This is a mandatory field. \n2) Only numeric value allowed.\n3) It should be greater than Zero."]
["NumberOfPromotersPresentInTheMeetingEitherInPersonOrThroughProxy","Number of promoters present in the meeting either in person or through proxy","xbrli:decimalItemType","instant","1) This is a mandatory field. \n2) Only numeric value allowed.\n3) It should be greater than Zero."]
["NumberOfPublicShareholdersPresentInTheMeetingEitherInPersonOrThroughProxy","Number of public shareholders present in the meeting either in person or through proxy","xbrli:decimalItemType","instant","1) This is a mandatory field. \n2) Only numeric value allowed.\n3) It should be greater than Zero."]
["NumberOfPromotersAttendedTheMeetingThroughVideoConferencing","Number of promoters attended the meeting through video conferencing","xbrli:decimalItemType","instant","1) This is a mandatory field. \n2) Only numeric value allowed.\n3) It should be greater than Zero."]
["NumberOfPublicShareholdersAttendedTheMeetingThroughVideoConferencing","Number of public shareholders attended the meeting through video conferencing","xbrli:decimalItemType","instant","1) This is a mandatory field. \n2) Only numeric value allowed.\n3) It should be greater than Zero."]
["NumberOfResolutionPassedInTheMeeting","Number of resolution passed in the meeting","xbrli:decimalItemType","instant","1) This is a mandatory field. \n2) Please select \"No. of resolution passed in the meeting\" between 1 to 50.\n3) Value should be greater than Zero."]
["DisclosureOfNotesOnVotingResultsExplanatoryTextBlock","Disclosure of notes on voting results","nonnum:textBlockItemType","duration"]
["Resolution"]
["TypeOfResolution","Type of resolution","in-bse-voting-types:TypeOfResolution","duration","This is a mandatory field. Drop down options \"Special\" or \"Ordinary\"."]
["WhetherPromoterOrPromoterGroupAreInterestedInTheAgendaOrResolution","Whether promoter or promoter group are interested in the agenda or resolution","xbrli:booleanItemType","duration","This is a mandatory field. Drop down options \"Yes\" or \"No\"."]
["DescriptionOfResolutionConsidered","Description of resolution considered","xbrli:stringItemType","duration","This is a mandatory field. Please enter in Description of resolution considered."]
["WhetherResolutionIsPassed","Whether resolution is Pass or Not.","xbrli:booleanItemType","duration","1) This is a mandatory field. Drop down option \"Yes\" or \"No\".\n2) If \"Resolution\" is \"Special\" than \"% of votes in favour\" should be greater than or equal to 75%.\n3) If \"Resolution\" is \"Ordinary\" than \"% of votes in favour\" should be greater than or equal to 50%."]
["NumberOfSharesHeld","No. of shares held                 ","xbrli:sharesItemType","instant","This is not mandatory field. But if  you enter in digits than no. of polled, favour and against is mandatory."]
["NumberOfVotesPolled","No. of votes polled               ","xbrli:decimalItemType","instant","This is not mandatory field. But if  you enter value in no. of shares held than mandatory. It should not be greater than no. of shares held. "]
["PercentageOfVotesPolledOnOutstandingShares","% of Votes polled on outstanding shares ","num:percentItemType","instant","This is not mandatory. It should not be more than 100 (%) percentage."]
["NumberOfVotesInFavour","No. of votes – in favour","xbrli:decimalItemType","instant","This is not mandatory field. But if  you enter value in no. of polled than mandatory. It should not be greater than or equal to no. of polled."]
["NumberOfVotesAgainst","No. of votes – against","xbrli:decimalItemType","instant","This is not mandatory field. But if  you enter value in no. of polled than mandatory. It should not be greater than or equal to no. of polled."]
["PercentageOfVotesInFavourOnVotesPolled","% of votes in favour on votes polled ","num:percentItemType","instant","This is not mandatory. It should not be more than 100 (%) percentage."]
["PercentageOfVotesAgainstOnVotesPolled","% of Votes against on votes polled ","num:percentItemType","instant","This is not mandatory. It should not be more than 100 (%) percentage."]
["DisclosureOfNotesOnResolutionExplantoryTextBlock","Disclosure of notes on voting resolution","nonnum:textBlockItemType","duration"]
["InvalidVotesPromoterAndPromoterGroup","Promoter and Promoter Group","xbrli:decimalItemType","instant","This is optional field. If there are no of shares held for Promoter and Promoter Group than and than this field having value otherwise leave it blank and total number of invalid votes shall not be greater than total no.of shares held."]
["InvalidVotesPublicInstitutions","Public Insitutions","xbrli:decimalItemType","instant","This is optional field. If there are no of shares held for Public Insitutions than and than this field having value otherwise leave it blank and total number of invalid votes shall not be greater than total no.of shares held."]
["InvalidVotesNonInstitutions","Public - Non Insitutions","xbrli:decimalItemType","instant","This is optional field. If there are no of shares held for Public - Non Insitutions than and than this field having value otherwise leave it blank and total number of invalid votes shall not be greater than total no.of shares held."]
[null,"Resolution required: (Ordinary / Special)",null,null,"This is a mandatory field. Drop down option \"Special\" or \"Ordinary\"."]
[null,"Whether promoter/promoter group are interested in the agenda/resolution?",null,null,"This is a mandatory field. Drop down option \"Yes\" or \"No\"."]
[null,"Description of resolution considered",null,null,"This is a mandatory field. Please enter in Description of resolution considered."]
[null,"No. of votes polled of E-Voting",null,null,"1) This is mandatory field. \n2) It should not be greater than \"No. of shares held\" and sum of \"No. of votes – in favour\", \"No. of votes – against\" and Invalid Votes."]
[null,"No. of votes polled of Poll",null,null,"1) This is mandatory field. \n2) It should not be greater than \"No. of shares held\" and sum of \"No. of votes – in favour\", \"No. of votes – against\" and Invalid Votes."]
[null,"No. of votes polled of Postal Ballot (if applicable)",null,null,"1) This is mandatory field. \n2) It should not be greater than \"No. of shares held\" and sum of \"No. of votes – in favour\", \"No. of votes – against\" and Invalid Votes."]
[null,"Total of No. of votes polled",null,null,"1) This is mandatory field. \n2) It should not be greater than \"No. of shares held\" and sum of \"No. of votes – in favour\", \"No. of votes – against\" and Invalid Votes."]
[null,"No. of votes – in favour of E-Voting",null,null,"1) This is mandatory field. \n2) Value cannot be greater than of \"No. of votes polled\".\n3) Value Should be greater than or equal to Zero\n4) No. of votes – in favour = (No. of votes polled) - (No. of votes – against)"]
[null,"No. of votes – in favour of Poll",null,null,"1) This is mandatory field. \n2) Value cannot be greater than of \"No. of votes polled\".\n3) Value Should be greater than or equal to Zero\n4) No. of votes – in favour = (No. of votes polled) - (No. of votes – against)"]
[null,"No. of votes – in favour of Postal Ballot (if applicable)",null,null,"1) This is mandatory field. \n2) Value cannot be greater than of \"No. of votes polled\".\n3) Value Should be greater than or equal to Zero\n4) No. of votes – in favour = (No. of votes polled) - (No. of votes – against)"]
[null,"Total of No. of votes – in favour",null,null,"1) This is mandatory field. \n2) Value cannot be greater than of \"No. of votes polled\".\n3) Value Should be greater than or equal to Zero\n4) No. of votes – in favour = (No. of votes polled) - (No. of votes – against)"]
[null,"No. of votes – against of E-Voting",null,null,"1) This is mandatory field. \n2) Value cannot be greater than of \"No. of votes polled\".\n3) Value Should be greater than or equal to Zero\n4) No. of votes – against = (No. of votes polled) - (No. of votes – in favour)"]
[null,"No. of votes – against of Poll",null,null,"1) This is mandatory field. \n2) Value cannot be greater than of \"No. of votes polled\".\n3) Value Should be greater than or equal to Zero\n4) No. of votes – against = (No. of votes polled) - (No. of votes – in favour)"]
[null,"No. of votes – against of Postal Ballot (if applicable)",null,null,"1) This is mandatory field. \n2) Value cannot be greater than of \"No. of votes polled\".\n3) Value Should be greater than or equal to Zero\n4) No. of votes – against = (No. of votes polled) - (No. of votes – in favour)"]
[null,"Total of No. of votes – against",null,null,"1) This is mandatory field. \n2) Value cannot be greater than of \"No. of votes polled\".\n3) Value Should be greater than or equal to Zero\n4) No. of votes – against = (No. of votes polled) - (No. of votes – in favour)"]
[null,"% of Votes polled on outstanding shares of E-Voting",null,null,"It should not be more than 100 (%) percentage."]
[null,"% of Votes polled on outstanding shares of Poll",null,null,"It should not be more than 100 (%) percentage."]
[null,"% of Votes polled on outstanding shares of Postal Ballot (if applicable)",null,null,"It should not be more than 100 (%) percentage."]
[null,"Total of % of Votes polled on outstanding shares",null,null,"It should not be more than 100 (%) percentage."]
[null,"% of votes in favour on votes polled of E-Voting",null,null,"It should not be more than 100 (%) percentage."]
[null,"% of votes in favour on votes polled of Poll",null,null,"It should not be more than 100 (%) percentage."]
[null,"% of votes in favour on votes polled of Postal Ballot (if applicable)",null,null,"It should not be more than 100 (%) percentage."]
[null,"Total of % of votes in favour on votes polled",null,null,"It should not be more than 100 (%) percentage."]
[null,"% of Votes against on votes polled of E-Voting",null,null,"It should not be more than 100 (%) percentage."]
[null,"% of Votes against on votes polled of Poll",null,null,"It should not be more than 100 (%) percentage."]
[null,"% of Votes against on votes polled of Postal Ballot (if applicable)",null,null,"It should not be more than 100 (%) percentage."]
[null,"Total of % of Votes against on votes polled",null,null,"It should not be more than 100 (%) percentage."]

{"sheet":"TextBlock","index":11,"n_rows":0,"n_cols":0,"rows_kept":0,"cut":false,"hidden":true,"merged":[]}